[Event "Early-Titled-Tuesday-Blitz-February-13-2024"]
[Site "Chess.com"]
[Date "2024.02.13"]
[Round "5"]
[White "ural58"]
[Black "Nikolakis2014"]
[Result "0-1"]
[WhiteElo "2506"]
[BlackElo "2709"]
[TimeControl "180+1"]
[EndTime "9:00:01 PST"]
[Termination "Nikolakis2014 won by resignation"]

1. e4 {[%clk 0:03:00.9]} 1... c5 {[%clk 0:02:59.2]} 2. b3 {[%clk 0:02:58.5]}
2... Nc6 {[%clk 0:02:57.4]} 3. Bb2 {[%clk 0:02:57.8]} 3... e5 {[%clk 0:02:56.9]}
4. f4 {[%clk 0:02:55.9]} 4... exf4 {[%clk 0:02:49.8]} 5. Qf3 {[%clk 0:02:55.3]}
5... Qc7 {[%clk 0:02:16.1]} 6. Ne2 {[%clk 0:02:52]} 6... Nf6 {[%clk 0:02:12.9]}
7. Nbc3 {[%clk 0:02:40.4]} 7... Nd4 {[%clk 0:01:37.5]} 8. Nxd4 {[%clk
0:02:36.3]} 8... cxd4 {[%clk 0:01:37.8]} 9. Nd5 {[%clk 0:02:31.3]} 9... Nxd5
{[%clk 0:01:34.9]} 10. exd5 {[%clk 0:02:31.3]} 10... Bc5 {[%clk 0:01:26]} 11.
Bd3 {[%clk 0:02:23.9]} 11... O-O {[%clk 0:01:23]} 12. O-O-O {[%clk 0:02:13.5]}
12... b5 {[%clk 0:01:15.4]} 13. d6 {[%clk 0:02:00.1]} 13... Bxd6 {[%clk
0:01:06.3]} 14. Qxa8 {[%clk 0:01:58.7]} 14... Bb7 {[%clk 0:01:05.4]} 15. Qxf8+
{[%clk 0:01:44.4]} 15... Kxf8 {[%clk 0:00:59.9]} 16. Rhg1 {[%clk 0:01:40]} 16...
Be5 {[%clk 0:00:54.7]} 17. Bxb5 {[%clk 0:01:32.7]} 17... Be4 {[%clk 0:00:47.8]}
18. d3 {[%clk 0:01:29.4]} 18... Bd5 {[%clk 0:00:37.7]} 19. Kb1 {[%clk
0:01:23.1]} 19... d6 {[%clk 0:00:37.9]} 20. h4 {[%clk 0:01:16.6]} 20... Qb7
{[%clk 0:00:36.6]} 21. Ba4 {[%clk 0:00:56.5]} 21... Bxg2 {[%clk 0:00:36]} 22. h5
{[%clk 0:00:51.7]} 22... f3 {[%clk 0:00:35.5]} 23. h6 {[%clk 0:00:36.4]} 23...
gxh6 {[%clk 0:00:34.9]} 24. Bc1 {[%clk 0:00:35.2]} 24... f2 {[%clk 0:00:30.1]}
25. Bxh6+ {[%clk 0:00:34.1]} 25... Ke7 {[%clk 0:00:30.4]} 26. Bg5+ {[%clk
0:00:12.2]} 26... f6 {[%clk 0:00:30.4]} 27. Bh4 {[%clk 0:00:12.2]} 27... fxg1=Q
{[%clk 0:00:29.9]} 28. Rxg1 {[%clk 0:00:13.1]} 28... Qf3 {[%clk 0:00:29.3]} 29.
Kb2 {[%clk 0:00:08.1]} 29... h5 {[%clk 0:00:26]} 30. Bb5 {[%clk 0:00:06.9]}
30... a5 {[%clk 0:00:25.2]} 31. Bc4 {[%clk 0:00:06.8]} 31... d5 {[%clk
0:00:24.4]} 32. Bb5 {[%clk 0:00:06.5]} 32... Kd6 {[%clk 0:00:24.7]} 33. a4
{[%clk 0:00:06.6]} 33... Bf4 {[%clk 0:00:20.7]} 34. Be1 {[%clk 0:00:06.1]} 34...
Be3 {[%clk 0:00:20.6]} 35. Rxg2 {[%clk 0:00:05.3]} 35... Qxg2 {[%clk 0:00:20.8]}
36. Bxa5 {[%clk 0:00:06.1]} 36... Qf1 {[%clk 0:00:21.3]} 37. Bb4+ {[%clk
0:00:05.4]} 37... Ke5 {[%clk 0:00:21.8]} 38. a5 {[%clk 0:00:04.5]} 38... Qc1+
{[%clk 0:00:21.8]} 39. Ka2 {[%clk 0:00:04.7]} 39... Qxc2+ {[%clk 0:00:22]} 0-1

[Event "Early-Titled-Tuesday-Blitz-February-13-2024"]
[Site "Chess.com"]
[Date "2024.02.13"]
[Round "5"]
[White "maicolbenavides"]
[Black "HamedWafa4"]
[Result "1-0"]
[WhiteElo "2535"]
[BlackElo "2745"]
[TimeControl "180+1"]
[EndTime "9:00:03 PST"]
[Termination "maicolbenavides won by resignation"]

1. e4 {[%clk 0:02:58.7]} 1... e5 {[%clk 0:02:53.7]} 2. Nf3 {[%clk 0:02:58.6]}
2... Nc6 {[%clk 0:02:53.7]} 3. Bb5 {[%clk 0:02:58.5]} 3... a6 {[%clk 0:02:51.6]}
4. Ba4 {[%clk 0:02:58.3]} 4... Nf6 {[%clk 0:02:51.3]} 5. O-O {[%clk 0:02:58.4]}
5... Be7 {[%clk 0:02:47.1]} 6. Re1 {[%clk 0:02:56.9]} 6... b5 {[%clk 0:02:44.2]}
7. Bb3 {[%clk 0:02:56.8]} 7... O-O {[%clk 0:02:42.2]} 8. c3 {[%clk 0:02:56.8]}
8... d5 {[%clk 0:02:41.4]} 9. exd5 {[%clk 0:02:54.5]} 9... Nxd5 {[%clk
0:02:40.2]} 10. d4 {[%clk 0:02:52.7]} 10... exd4 {[%clk 0:02:35.3]} 11. Nxd4
{[%clk 0:02:52.6]} 11... Nxd4 {[%clk 0:02:23.6]} 12. Qxd4 {[%clk 0:02:06.6]}
12... Bb7 {[%clk 0:02:18.8]} 13. Nd2 {[%clk 0:02:02.6]} 13... c5 {[%clk
0:02:16.5]} 14. Qg4 {[%clk 0:02:00.4]} 14... c4 {[%clk 0:02:15.7]} 15. Bc2
{[%clk 0:01:59.5]} 15... Nf6 {[%clk 0:02:16]} 16. Qg3 {[%clk 0:01:51.9]} 16...
Bd6 {[%clk 0:02:15]} 17. Qh4 {[%clk 0:01:49.2]} 17... Re8 {[%clk 0:02:12]} 18.
Rxe8+ {[%clk 0:01:34.4]} 18... Qxe8 {[%clk 0:02:12.9]} 19. Nf3 {[%clk
0:01:29.1]} 19... Qe2 {[%clk 0:02:00.5]} 20. Bf5 {[%clk 0:00:50.7]} 20... Bxf3
{[%clk 0:01:51.3]} 21. gxf3 {[%clk 0:00:50.5]} 21... Qxf3 {[%clk 0:01:51.9]} 22.
Bh3 {[%clk 0:00:42.3]} 22... Qd1+ {[%clk 0:01:43.6]} 23. Kg2 {[%clk 0:00:32.5]}
23... Re8 {[%clk 0:01:41.1]} 24. Qd4 {[%clk 0:00:31.3]} 24... Qxd4 {[%clk
0:01:36.3]} 25. cxd4 {[%clk 0:00:32.2]} 25... Re1 {[%clk 0:01:36.8]} 26. b3
{[%clk 0:00:28.5]} 26... c3 {[%clk 0:01:04.6]} 27. a4 {[%clk 0:00:18.7]} 27...
b4 {[%clk 0:01:03.8]} 28. a5 {[%clk 0:00:15.5]} 28... g6 {[%clk 0:01:02.7]} 29.
Kf3 {[%clk 0:00:13.2]} 29... Nd5 {[%clk 0:01:00.1]} 30. Bc8 {[%clk 0:00:10.4]}
30... Bf4 {[%clk 0:00:56.9]} 31. Bb2 {[%clk 0:00:06.2]} 31... Rxa1 {[%clk
0:00:57.8]} 32. Bxa1 {[%clk 0:00:07.1]} 32... c2 {[%clk 0:00:55.1]} 33. Bb2
{[%clk 0:00:07.2]} 33... c1=Q {[%clk 0:00:32.9]} 34. Bxc1 {[%clk 0:00:07.1]}
34... Bxc1 {[%clk 0:00:33.8]} 35. Bxa6 {[%clk 0:00:07.6]} 35... f5 {[%clk
0:00:34]} 36. Bc4 {[%clk 0:00:07.2]} 36... Kf8 {[%clk 0:00:31.6]} 37. Bxd5
{[%clk 0:00:07.3]} 37... Bb2 {[%clk 0:00:19.4]} 38. Ke3 {[%clk 0:00:07.7]} 38...
f4+ {[%clk 0:00:19.4]} 39. Ke4 {[%clk 0:00:05.3]} 39... f3 {[%clk 0:00:18.5]}
40. a6 {[%clk 0:00:05.4]} 40... Bxd4 {[%clk 0:00:18.9]} 41. Kxd4 {[%clk
0:00:05.4]} 1-0

[Event "Early-Titled-Tuesday-Blitz-February-13-2024"]
[Site "Chess.com"]
[Date "2024.02.13"]
[Round "5"]
[White "Zq1"]
[Black "Egor_Koshulyan"]
[Result "0-1"]
[WhiteElo "2481"]
[BlackElo "2622"]
[TimeControl "180+1"]
[EndTime "9:00:06 PST"]
[Termination "Egor_Koshulyan won on time"]

1. d4 {[%clk 0:03:00.9]} 1... Nf6 {[%clk 0:02:54.9]} 2. c4 {[%clk 0:03:00.8]}
2... e5 {[%clk 0:02:55]} 3. dxe5 {[%clk 0:02:59.9]} 3... Ng4 {[%clk 0:02:55.4]}
4. Bf4 {[%clk 0:02:59.4]} 4... Bb4+ {[%clk 0:02:56]} 5. Nc3 {[%clk 0:02:58.3]}
5... Nc6 {[%clk 0:02:56.3]} 6. Nf3 {[%clk 0:02:57.8]} 6... Qe7 {[%clk 0:02:57]}
7. Qd5 {[%clk 0:02:56.4]} 7... f6 {[%clk 0:02:53.8]} 8. exf6 {[%clk 0:02:55]}
8... Bxc3+ {[%clk 0:02:32.4]} 9. bxc3 {[%clk 0:02:53.6]} 9... Nxf6 {[%clk
0:02:33.3]} 10. Qd3 {[%clk 0:02:49.9]} 10... d6 {[%clk 0:02:33.5]} 11. g3 {[%clk
0:02:46.6]} 11... O-O {[%clk 0:02:31.2]} 12. Bg2 {[%clk 0:02:45.7]} 12... Ne4
{[%clk 0:02:30.4]} 13. O-O {[%clk 0:02:38.6]} 13... Nc5 {[%clk 0:02:30.4]} 14.
Qe3 {[%clk 0:02:37.9]} 14... Qf7 {[%clk 0:02:21]} 15. Nd4 {[%clk 0:02:28.4]}
15... Qxc4 {[%clk 0:02:02.6]} 16. Nxc6 {[%clk 0:02:22.6]} 16... bxc6 {[%clk
0:02:03.5]} 17. Bxc6 {[%clk 0:02:21.1]} 17... Rb8 {[%clk 0:02:03.1]} 18. Qd4
{[%clk 0:01:41.6]} 18... Qxe2 {[%clk 0:01:55.8]} 19. Rfe1 {[%clk 0:01:36.4]}
19... Qg4 {[%clk 0:01:53.6]} 20. Re7 {[%clk 0:01:20.7]} 20... Kh8 {[%clk
0:01:18.7]} 21. Bh6 {[%clk 0:01:07.3]} 21... Qxd4 {[%clk 0:00:50.8]} 22. cxd4
{[%clk 0:01:06]} 22... gxh6 {[%clk 0:00:35.1]} 23. dxc5 {[%clk 0:01:04.7]} 23...
dxc5 {[%clk 0:00:36]} 24. Be4 {[%clk 0:00:59.1]} 24... Rb2 {[%clk 0:00:32.9]}
25. Rxh7+ {[%clk 0:00:43.6]} 25... Kg8 {[%clk 0:00:33]} 26. Rxc7 {[%clk
0:00:41.6]} 26... Be6 {[%clk 0:00:22.5]} 27. Re1 {[%clk 0:00:31.7]} 27... Rfxf2
{[%clk 0:00:20.1]} 28. Bh7+ {[%clk 0:00:27.7]} 28... Kf8 {[%clk 0:00:20.7]} 29.
Rxe6 {[%clk 0:00:26]} 29... Rg2+ {[%clk 0:00:21.2]} 30. Kf1 {[%clk 0:00:24.7]}
30... Rxh2 {[%clk 0:00:06.4]} 31. Rc8+ {[%clk 0:00:19.7]} 31... Kf7 {[%clk
0:00:06.4]} 32. Bg8+ {[%clk 0:00:18.4]} 32... Kg7 {[%clk 0:00:07]} 33. Rc7+
{[%clk 0:00:17.5]} 33... Kf8 {[%clk 0:00:06.5]} 34. Rc8+ {[%clk 0:00:05.4]}
34... Kg7 {[%clk 0:00:06.3]} 35. Rc7+ {[%clk 0:00:04.5]} 35... Kh8 {[%clk
0:00:06.6]} 0-1

[Event "Early-Titled-Tuesday-Blitz-February-13-2024"]
[Site "Chess.com"]
[Date "2024.02.13"]
[Round "5"]
[White "BeardedNM"]
[Black "Kotofeyca"]
[Result "0-1"]
[WhiteElo "2201"]
[BlackElo "2419"]
[TimeControl "180+1"]
[EndTime "9:00:07 PST"]
[Termination "Kotofeyca won on time"]

1. e4 {[%clk 0:03:00.9]} 1... c5 {[%clk 0:02:59.7]} 2. Nf3 {[%clk 0:03:00.7]}
2... d6 {[%clk 0:03:00.3]} 3. d4 {[%clk 0:03:01.3]} 3... cxd4 {[%clk 0:03:01.1]}
4. Nxd4 {[%clk 0:03:02.2]} 4... Nf6 {[%clk 0:03:01.3]} 5. Nc3 {[%clk 0:03:02.7]}
5... a6 {[%clk 0:03:01.9]} 6. Be3 {[%clk 0:03:03.2]} 6... Ng4 {[%clk 0:03:01.7]}
7. Bg5 {[%clk 0:03:02.6]} 7... Nc6 {[%clk 0:03:01.8]} 8. h3 {[%clk 0:02:49]}
8... Qb6 {[%clk 0:03:01.4]} 9. hxg4 {[%clk 0:02:41.5]} 9... Qxd4 {[%clk
0:03:00.7]} 10. Qxd4 {[%clk 0:02:35.2]} 10... Nxd4 {[%clk 0:03:01.6]} 11. O-O-O
{[%clk 0:02:35.5]} 11... Nc6 {[%clk 0:02:52.7]} 12. Nd5 {[%clk 0:02:25.6]} 12...
Rb8 {[%clk 0:02:48.1]} 13. f3 {[%clk 0:02:05.9]} 13... b5 {[%clk 0:02:43.8]} 14.
Bf4 {[%clk 0:01:53.5]} 14... Be6 {[%clk 0:02:15.9]} 15. Nc7+ {[%clk 0:01:36.2]}
15... Kd8 {[%clk 0:02:00.1]} 16. Nxa6 {[%clk 0:01:31.9]} 16... Rb6 {[%clk
0:01:55.3]} 17. Nc5 {[%clk 0:01:31.7]} 17... Bc4 {[%clk 0:01:37]} 18. Be3 {[%clk
0:01:21.6]} 18... Kc7 {[%clk 0:01:29.5]} 19. Nd3 {[%clk 0:00:59.7]} 19... Ra6
{[%clk 0:01:27.5]} 20. b3 {[%clk 0:00:59.1]} 20... Be6 {[%clk 0:00:57]} 21. Kb1
{[%clk 0:00:51.4]} 21... g6 {[%clk 0:00:47.2]} 22. Nf4 {[%clk 0:00:42]} 22...
Ra5 {[%clk 0:00:46.6]} 23. Nd5+ {[%clk 0:00:30.2]} 23... Bxd5 {[%clk 0:00:39.5]}
24. exd5 {[%clk 0:00:30.6]} 24... Ne5 {[%clk 0:00:39.7]} 25. Bd2 {[%clk
0:00:24.6]} 25... Ra3 {[%clk 0:00:32.1]} 26. Bxb5 {[%clk 0:00:14.1]} 26... Bg7
{[%clk 0:00:32.2]} 27. Bb4 {[%clk 0:00:13.9]} 27... Ra7 {[%clk 0:00:29.5]} 28.
a4 {[%clk 0:00:13.8]} 28... Rb8 {[%clk 0:00:28.8]} 29. Bc3 {[%clk 0:00:11.4]}
29... Kb6 {[%clk 0:00:26.8]} 30. f4 {[%clk 0:00:08.8]} 30... Rc7 {[%clk
0:00:24.7]} 31. Bb2 {[%clk 0:00:06.8]} 31... Rbc8 {[%clk 0:00:20.1]} 32. fxe5
{[%clk 0:00:06]} 32... Rxc2 {[%clk 0:00:20.1]} 33. Rxh7 {[%clk 0:00:04.8]} 33...
Bxe5 {[%clk 0:00:15.2]} 34. Bxe5 {[%clk 0:00:04]} 34... dxe5 {[%clk 0:00:16.1]}
35. Rxf7 {[%clk 0:00:02.4]} 35... Rxg2 {[%clk 0:00:16.1]} 36. Rxe7 {[%clk
0:00:02.5]} 36... Rcc2 {[%clk 0:00:15.9]} 37. Re6+ {[%clk 0:00:02.9]} 37... Ka5
{[%clk 0:00:15.4]} 38. Ra6+ {[%clk 0:00:02.6]} 38... Kb4 {[%clk 0:00:15.7]} 39.
Rb6 {[%clk 0:00:02.1]} 39... Rb2+ {[%clk 0:00:14.1]} 40. Ka1 {[%clk 0:00:01.8]}
40... Ra2+ {[%clk 0:00:14.3]} 41. Kb1 {[%clk 0:00:02.3]} 41... Rgb2+ {[%clk
0:00:13.8]} 42. Kc1 {[%clk 0:00:02.6]} 42... Ka3 {[%clk 0:00:14.6]} 0-1

[Event "Early-Titled-Tuesday-Blitz-February-13-2024"]
[Site "Chess.com"]
[Date "2024.02.13"]
[Round "5"]
[White "Arystanner"]
[Black "Keeper0416"]
[Result "1-0"]
[WhiteElo "2818"]
[BlackElo "2589"]
[TimeControl "180+1"]
[EndTime "9:00:09 PST"]
[Termination "Arystanner won by resignation"]

1. c4 {[%clk 0:02:56.4]} 1... e6 {[%clk 0:02:59.1]} 2. Nc3 {[%clk 0:02:56]} 2...
d5 {[%clk 0:02:59]} 3. e3 {[%clk 0:02:56.4]} 3... Nf6 {[%clk 0:02:58.3]} 4. Nf3
{[%clk 0:02:56.7]} 4... Nbd7 {[%clk 0:02:55.7]} 5. b3 {[%clk 0:02:55.2]} 5...
Be7 {[%clk 0:02:51.9]} 6. Bb2 {[%clk 0:02:55.5]} 6... b6 {[%clk 0:02:51.2]} 7.
Qc2 {[%clk 0:02:55.7]} 7... Bb7 {[%clk 0:02:51.4]} 8. cxd5 {[%clk 0:02:55.2]}
8... exd5 {[%clk 0:02:50.6]} 9. d4 {[%clk 0:02:53.8]} 9... a6 {[%clk 0:02:48.2]}
10. Bd3 {[%clk 0:02:50.7]} 10... g6 {[%clk 0:02:41.8]} 11. O-O {[%clk
0:02:49.9]} 11... O-O {[%clk 0:02:39.4]} 12. Rac1 {[%clk 0:02:47.6]} 12... Bd6
{[%clk 0:02:35.9]} 13. e4 {[%clk 0:02:40.8]} 13... Bf4 {[%clk 0:02:17.6]} 14.
Rcd1 {[%clk 0:02:29.4]} 14... dxe4 {[%clk 0:02:16.8]} 15. Nxe4 {[%clk
0:02:30.3]} 15... Nd5 {[%clk 0:02:16.8]} 16. a3 {[%clk 0:02:18.5]} 16... Re8
{[%clk 0:02:14.3]} 17. Rfe1 {[%clk 0:02:16.5]} 17... Bh6 {[%clk 0:01:59.2]} 18.
Ne5 {[%clk 0:02:14.4]} 18... N7f6 {[%clk 0:01:26.2]} 19. Nxf6+ {[%clk
0:02:05.4]} 19... Qxf6 {[%clk 0:01:14.8]} 20. Be4 {[%clk 0:02:03.6]} 20... Rac8
{[%clk 0:00:57.7]} 21. g3 {[%clk 0:01:40]} 21... Bg7 {[%clk 0:00:55.1]} 22. Qc4
{[%clk 0:01:34.1]} 22... Qd6 {[%clk 0:00:49]} 23. b4 {[%clk 0:01:26.1]} 23... b5
{[%clk 0:00:38.2]} 24. Qb3 {[%clk 0:01:16.1]} 24... c6 {[%clk 0:00:35]} 25. Bg2
{[%clk 0:01:08.7]} 25... Re7 {[%clk 0:00:23.5]} 26. Nd3 {[%clk 0:00:46.2]} 26...
Rce8 {[%clk 0:00:19.2]} 27. Rxe7 {[%clk 0:00:45.8]} 27... Rxe7 {[%clk
0:00:20.1]} 28. Ne5 {[%clk 0:00:45.9]} 28... Nb6 {[%clk 0:00:18.1]} 29. h4
{[%clk 0:00:41.8]} 29... h5 {[%clk 0:00:16.6]} 30. Bc1 {[%clk 0:00:27.9]} 30...
Kh7 {[%clk 0:00:15.9]} 31. Bf4 {[%clk 0:00:26.3]} 31... Qe6 {[%clk 0:00:12.3]}
32. Qxe6 {[%clk 0:00:25.8]} 32... Rxe6 {[%clk 0:00:12.3]} 33. Nxf7 {[%clk
0:00:25.7]} 33... Re2 {[%clk 0:00:10]} 34. Nd8 {[%clk 0:00:23]} 34... Ba8 {[%clk
0:00:09.2]} 35. Nxc6 {[%clk 0:00:20.9]} 35... Nc4 {[%clk 0:00:09.1]} 36. d5
{[%clk 0:00:20.6]} 36... Nxa3 {[%clk 0:00:07.6]} 37. d6 {[%clk 0:00:20.7]} 37...
Bf6 {[%clk 0:00:07.2]} 38. d7 {[%clk 0:00:20.9]} 38... Nc2 {[%clk 0:00:07.4]}
39. Bg5 {[%clk 0:00:20.9]} 39... Bxc6 {[%clk 0:00:04.2]} 40. Bxc6 {[%clk
0:00:20.7]} 40... Bxg5 {[%clk 0:00:03.6]} 41. hxg5 {[%clk 0:00:21.6]} 41... Nxb4
{[%clk 0:00:03.8]} 42. d8=Q {[%clk 0:00:21.8]} 42... Nxc6 {[%clk 0:00:04.6]} 43.
Qc7+ {[%clk 0:00:21.5]} 43... Ne7 {[%clk 0:00:05.2]} 44. Rd7 {[%clk 0:00:21.6]}
44... Re1+ {[%clk 0:00:06.1]} 1-0

[Event "Early-Titled-Tuesday-Blitz-February-13-2024"]
[Site "Chess.com"]
[Date "2024.02.13"]
[Round "5"]
[White "Lion_DL"]
[Black "crazy_but_lazy"]
[Result "1-0"]
[WhiteElo "2474"]
[BlackElo "2598"]
[TimeControl "180+1"]
[EndTime "9:00:10 PST"]
[Termination "Lion_DL won by resignation"]

1. d4 {[%clk 0:03:00.9]} 1... Nf6 {[%clk 0:02:59.6]} 2. c4 {[%clk 0:03:01.1]}
2... e6 {[%clk 0:02:59.8]} 3. Nf3 {[%clk 0:03:00.8]} 3... d5 {[%clk 0:02:58.1]}
4. cxd5 {[%clk 0:03:00.3]} 4... exd5 {[%clk 0:02:58.2]} 5. Nc3 {[%clk
0:03:00.8]} 5... c6 {[%clk 0:02:55.6]} 6. Qc2 {[%clk 0:02:59.7]} 6... g6 {[%clk
0:02:55]} 7. Bg5 {[%clk 0:02:57.4]} 7... Bf5 {[%clk 0:02:38]} 8. Qb3 {[%clk
0:02:55.4]} 8... b6 {[%clk 0:02:27.8]} 9. Ne5 {[%clk 0:02:46]} 9... Bg7 {[%clk
0:02:19.3]} 10. e4 {[%clk 0:02:41.9]} 10... Be6 {[%clk 0:01:58.3]} 11. exd5
{[%clk 0:02:41]} 11... cxd5 {[%clk 0:01:57.3]} 12. Bb5+ {[%clk 0:02:39.7]} 12...
Kf8 {[%clk 0:01:47.4]} 13. O-O {[%clk 0:02:20.4]} 13... h6 {[%clk 0:01:39.2]}
14. Bh4 {[%clk 0:02:19.3]} 14... Kg8 {[%clk 0:01:19.6]} 15. Rae1 {[%clk
0:02:11.5]} 15... Qd6 {[%clk 0:01:15.2]} 16. Bg3 {[%clk 0:02:07.7]} 16... Qe7
{[%clk 0:00:45.7]} 17. f4 {[%clk 0:01:39.5]} 17... Kh7 {[%clk 0:00:37.9]} 18.
Qc2 {[%clk 0:01:10.9]} 18... Bf5 {[%clk 0:00:30.1]} 19. Qb3 {[%clk 0:01:03.7]}
19... Qb7 {[%clk 0:00:19.7]} 20. Bh4 {[%clk 0:00:45.7]} 20... a6 {[%clk
0:00:18.2]} 21. Be2 {[%clk 0:00:41.8]} 21... Rd8 {[%clk 0:00:17]} 22. Bf3 {[%clk
0:00:40.6]} 22... Be4 {[%clk 0:00:15.6]} 23. Bxf6 {[%clk 0:00:38.9]} 23... Bxf6
{[%clk 0:00:15.4]} 24. Nxe4 {[%clk 0:00:37.6]} 24... dxe4 {[%clk 0:00:13.3]} 25.
Bxe4 {[%clk 0:00:38]} 25... Qa7 {[%clk 0:00:10.3]} 26. Bxa8 {[%clk 0:00:36.8]}
26... Kg7 {[%clk 0:00:10.9]} 27. Bd5 {[%clk 0:00:32.7]} 27... Rf8 {[%clk
0:00:03.6]} 28. Qd3 {[%clk 0:00:26.3]} 28... Nd7 {[%clk 0:00:03.4]} 29. Nxd7
{[%clk 0:00:21.3]} 29... Qxd7 {[%clk 0:00:04.3]} 30. Be4 {[%clk 0:00:21.2]}
30... Rd8 {[%clk 0:00:04]} 31. Rd1 {[%clk 0:00:20.7]} 31... Qc7 {[%clk
0:00:03.9]} 32. f5 {[%clk 0:00:20.4]} 32... g5 {[%clk 0:00:04]} 33. Qc3 {[%clk
0:00:19.2]} 33... Qd6 {[%clk 0:00:03.3]} 34. Kh1 {[%clk 0:00:19.3]} 34... h5
{[%clk 0:00:03.4]} 35. Qh3 {[%clk 0:00:18.8]} 35... h4 {[%clk 0:00:03.6]} 36.
Qg4 {[%clk 0:00:18.7]} 36... Qb4 {[%clk 0:00:03.8]} 37. Bf3 {[%clk 0:00:16.7]}
37... Qxb2 {[%clk 0:00:03.7]} 38. Rfe1 {[%clk 0:00:15.6]} 38... Qxa2 {[%clk
0:00:03.5]} 39. d5 {[%clk 0:00:15.4]} 39... Rd6 {[%clk 0:00:03.5]} 40. g3 {[%clk
0:00:15]} 40... hxg3 {[%clk 0:00:03.4]} 41. Qxg3 {[%clk 0:00:15.2]} 41... a5
{[%clk 0:00:04.1]} 42. Qxd6 {[%clk 0:00:15.1]} 42... Qb3 {[%clk 0:00:04]} 43.
Qg3 {[%clk 0:00:15.2]} 43... a4 {[%clk 0:00:04.5]} 44. Bg2 {[%clk 0:00:15.8]}
44... a3 {[%clk 0:00:05]} 45. Qxb3 {[%clk 0:00:15.8]} 1-0

[Event "Early-Titled-Tuesday-Blitz-February-13-2024"]
[Site "Chess.com"]
[Date "2024.02.13"]
[Round "5"]
[White "Sina_Movahed"]
[Black "shrek4life02"]
[Result "1-0"]
[WhiteElo "2989"]
[BlackElo "2693"]
[TimeControl "180+1"]
[EndTime "9:00:11 PST"]
[Termination "Sina_Movahed won by resignation"]

1. e4 {[%clk 0:03:00.3]} 1... c6 {[%clk 0:02:58.3]} 2. d4 {[%clk 0:02:54.9]}
2... d5 {[%clk 0:02:59.2]} 3. e5 {[%clk 0:02:55.5]} 3... Bf5 {[%clk 0:02:59.2]}
4. h4 {[%clk 0:02:54.2]} 4... h5 {[%clk 0:02:59]} 5. Bg5 {[%clk 0:02:54.9]} 5...
Qb6 {[%clk 0:02:57.1]} 6. Bd3 {[%clk 0:02:55.4]} 6... Qxd4 {[%clk 0:02:57.5]} 7.
Nf3 {[%clk 0:02:55.5]} 7... Qg4 {[%clk 0:02:56.5]} 8. Bxf5 {[%clk 0:02:56.1]}
8... Qxf5 {[%clk 0:02:57.1]} 9. O-O {[%clk 0:02:56.8]} 9... e6 {[%clk
0:02:49.8]} 10. c4 {[%clk 0:02:57.4]} 10... Nd7 {[%clk 0:02:42.2]} 11. Nc3
{[%clk 0:02:57.3]} 11... Ne7 {[%clk 0:02:25]} 12. Nd4 {[%clk 0:02:56.4]} 12...
Qg4 {[%clk 0:02:09.5]} 13. f3 {[%clk 0:02:55.1]} 13... Qg3 {[%clk 0:02:10.1]}
14. Re1 {[%clk 0:02:43.5]} 14... Ng6 {[%clk 0:01:54.2]} 15. Nf5 {[%clk
0:02:30.7]} 15... exf5 {[%clk 0:01:31.6]} 16. Ne2 {[%clk 0:02:30.2]} 16... Bc5+
{[%clk 0:01:31.4]} 17. Kh1 {[%clk 0:02:30.4]} 17... Qf2 {[%clk 0:01:18.7]} 18.
Rf1 {[%clk 0:02:29.6]} 18... Qxf1+ {[%clk 0:01:06.6]} 19. Qxf1 {[%clk
0:02:29.2]} 19... dxc4 {[%clk 0:01:06.5]} 20. Ng3 {[%clk 0:01:56.2]} 20... f4
{[%clk 0:01:02.3]} 21. Nf5 {[%clk 0:01:52.7]} 21... O-O {[%clk 0:01:00.9]} 22.
Qxc4 {[%clk 0:01:21.7]} 22... b5 {[%clk 0:00:55.6]} 23. Qe4 {[%clk 0:01:18.7]}
23... Rae8 {[%clk 0:00:55.9]} 24. Qxc6 {[%clk 0:01:17]} 24... Ngxe5 {[%clk
0:00:56.1]} 25. Qxb5 {[%clk 0:01:15.2]} 25... g6 {[%clk 0:00:39.4]} 26. Bxf4
{[%clk 0:00:54.5]} 26... gxf5 {[%clk 0:00:38.7]} 27. Bxe5 {[%clk 0:00:54.4]}
27... Rxe5 {[%clk 0:00:32.6]} 28. Qxd7 {[%clk 0:00:54.2]} 28... Rfe8 {[%clk
0:00:32.9]} 29. Rc1 {[%clk 0:00:51.9]} 29... Bb6 {[%clk 0:00:21.5]} 30. Kh2
{[%clk 0:00:45.7]} 30... Kg7 {[%clk 0:00:21.6]} 31. f4 {[%clk 0:00:42.6]} 31...
R5e7 {[%clk 0:00:21]} 32. Qxf5 {[%clk 0:00:42.2]} 32... Re2 {[%clk 0:00:20.4]}
33. Rc3 {[%clk 0:00:37.9]} 33... R8e3 {[%clk 0:00:16.3]} 34. Rxe3 {[%clk
0:00:36.8]} 34... Rxe3 {[%clk 0:00:17.2]} 35. Qxh5 {[%clk 0:00:35.1]} 35... Rd3
{[%clk 0:00:16.1]} 36. Qg5+ {[%clk 0:00:34.5]} 36... Kf8 {[%clk 0:00:16.8]} 37.
h5 {[%clk 0:00:35.4]} 37... Rd2 {[%clk 0:00:16.9]} 38. h6 {[%clk 0:00:34.8]}
38... Ke8 {[%clk 0:00:15.1]} 39. h7 {[%clk 0:00:34.6]} 39... Bd4 {[%clk
0:00:16]} 40. f5 {[%clk 0:00:32]} 40... Be5+ {[%clk 0:00:12.8]} 41. Kh3 {[%clk
0:00:31.6]} 41... Rd3+ {[%clk 0:00:12.5]} 42. g3 {[%clk 0:00:30.9]} 42... Rd1
{[%clk 0:00:07.1]} 43. Kg2 {[%clk 0:00:29.5]} 43... Re1 {[%clk 0:00:04.9]} 44.
Kf2 {[%clk 0:00:26.2]} 44... Rh1 {[%clk 0:00:04.8]} 45. Qe3 {[%clk 0:00:25.8]}
45... f6 {[%clk 0:00:04.9]} 46. Qxa7 {[%clk 0:00:25.7]} 46... Kf8 {[%clk
0:00:05.5]} 47. Qa8+ {[%clk 0:00:24.2]} 47... Ke7 {[%clk 0:00:06]} 48. Qxh1
{[%clk 0:00:23.9]} 1-0